﻿Company(T),Trans.date,Supplier Name(T),TransNo,Amount,Irrecoverable VAT,Service/Dept(T),Procurement Category,Account code,Account code(T),Narrative/Purpose of Spend,Govt Procurement Card
East Cambridgeshire District Council,23/12/2015,Specialist Access Training Ltd,634548,"1,005.00",,Open Spaces,Employees,1135,Training - External,6 delegates 7/1/16 IPAF MEWP Cat 1b training & Hire 1b,
East Cambridgeshire District Council,07/01/2016,Oak Tree Management & Training Ltd,634591,780,,Planning,Employees,1135,Training - External,Redacted Personal Data - Presentation Skills - 14/1/16,
East Cambridgeshire District Council,11/01/2016,Brampton Valley Training,634600,"1,450.00",,Sanctuary Grasscutting,Employees,1135,Training - External,5 Day chainsaw maintenance & felling 4-8/1/16 2 delegates,
East Cambridgeshire District Council,11/01/2016,Brampton Valley Training,634602,615,,Parks And Open Spaces,Employees,1135,Training - External,1 day CS32 refresher/4 day felling 18-21/1/16,
East Cambridgeshire District Council,11/01/2016,Brampton Valley Training,634603,599.94,,Parks And Open Spaces,Employees,1135,Training - External,1 day safe use pole pruner 13/1/16 6 delegates,
East Cambridgeshire District Council,13/01/2016,BRS Training Ltd,634615,"1,050.83",,Member Training,Employees,1135,Training - External,Executive day delegate/ Half day delegate,
East Cambridgeshire District Council,26/01/2016,Idox Software Limited,634716,"1,200.00",,Planning,Employees,1135,Training - External,Training for 2 persons 14/15 March 2016,
East Cambridgeshire District Council,27/01/2016,Anglia Ruskin Enterprise Ltd,634740,"2,925.00",,Planning,Employees,1135,Training - External,Redacted Personal Data - MSc Urban Design,
East Cambridgeshire District Council,22/01/2016,Haymarket Media Group Ltd,634700,880,,Parks And Open Spaces,Employees,1140,Staff Advertising,Horticulture Week - Advert,
East Cambridgeshire District Council,21/01/2016,Ironmongery Direct ,5104492,50,,The Grange,Premises,2010,Premises Materials,Finger and Kick Plates,Y
East Cambridgeshire District Council,19/12/2015,C D Clowe,634518,"1,632.00",,Portley Hill Littleport Depot,Premises,2020,Premises Contract Work,Lighting - Portley Hill Depot,
East Cambridgeshire District Council,07/01/2016,Apex Roofing Anglia Ltd,634562,720,,"PC Main Street, Littleport",Premises,2020,Premises Contract Work,Littleport Toilets - Carry Out Repairs,
East Cambridgeshire District Council,07/03/2014,Sanctuary Maintenance Contractors Ltd,634682,"65,464.40",,Infrastructure and Strategy,Premises,2020,Premises Contract Work,Refurbishment of Caretakers Bungalow Redacted Personal Data ,
East Cambridgeshire District Council,21/01/2016,Sanctuary Maintenance Contractors Ltd,634683,-839.4,,Infrastructure and Strategy,Premises,2020,Premises Contract Work,Relates to Invoice SMC000233,
East Cambridgeshire District Council,11/01/2016,Camline Cambridge Ltd,634585,"11,259.55",,Parking Of Vehicles,Premises,2030,Premises Asset Management,"Ely, Soham & Littleport Car Parks - Marking Out",
East Cambridgeshire District Council,08/01/2016,Martin & Mortimer,634589,"2,083.33",,The Old Gaol House,Premises,2030,Premises Asset Management,The Old Gaol Market Street Ely,
East Cambridgeshire District Council,13/01/2016,C D Clowe,634619,"1,782.88",,Parking Of Vehicles,Premises,2030,Premises Asset Management,Ship Lane - LED Conversion,
East Cambridgeshire District Council,19/01/2016,C D Clowe,634660,"1,850.77",,The Grange,Premises,2030,Premises Asset Management,Works carried out at the grange 16/17 Jan 2016,
East Cambridgeshire District Council,18/01/2016,Grays Surfacing,634668,"1,797.00",,Open Spaces,Premises,2030,Premises Asset Management,"Resurfacing Footpath at Church Lane, Littleport",
East Cambridgeshire District Council,18/01/2016,Grays Surfacing,634669,"5,091.50",,Asset Management,Premises,2030,Premises Asset Management,Works at Mill Field Sutton Footpath,
East Cambridgeshire District Council,21/01/2016,Lampshop ,5104492,371.96,,The Grange,Premises,2030,Premises Asset Management,LED Corn Light,Y
East Cambridgeshire District Council,18/11/2015,Southern Electric,1132796,"2,652.15",,Portley Hill Littleport Depot,Premises,2110,Electricity,4229351217 Hut in Council Depot Barton Rd,
East Cambridgeshire District Council,07/01/2016,E.ON UK plc,1133073,"1,068.64",,Parking Of Vehicles,Premises,2110,Electricity,011397609520 St/Lighting-Car Parks,
East Cambridgeshire District Council,13/01/2016,Southern Electric,1133127,"1,910.31",,E Space North,Premises,2110,Electricity,5993860219 ESpace North,
East Cambridgeshire District Council,21/12/2015,Southern Electric,1132949,"-2,652.15",,Portley Hill Littleport Depot,Premises,2110,Electricity,"571327722 Hut in Council Depot, Barton Rd",
East Cambridgeshire District Council,23/12/2015,East Cambs District Council,1132985,"1,280.45",,Industrial Development,Premises,2310,General Rates,907807791 8 St Thomas´ Place Ely,
East Cambridgeshire District Council,21/12/2015,Anglian Water,1132967,558.24,,The Grange,Premises,2410,Water Rates,"116320623 The Grange, Nutholt Lane",
East Cambridgeshire District Council,15/01/2016,Anglian Water,1133133,602.61,,Travellers Site - Wentworth,Premises,2410,Water Rates,114753973 Wentworth Travellers Site,
East Cambridgeshire District Council,25/01/2016,Anglian Water,1133178,647.46,,Travellers Site - Earith Bridge,Premises,2410,Water Rates,102890274 Earith Bridge Travellers Site,
East Cambridgeshire District Council,21/12/2015,Anglian Water,1132967,603.36,,The Grange,Premises,2411,Sewerage Charge,"116320623 The Grange, Nutholt Lane",
East Cambridgeshire District Council,21/12/2015,Anglian Water,1132969,545.78,,"PC Cloisters, Ely",Premises,2411,Sewerage Charge,"116323544 Public Toilets, The Cloisters",
East Cambridgeshire District Council,08/01/2016,Barcham Trees plc,634582,836.1,,Tree Preservation/Landscaping,Premises,2813,Tree Planting,,
East Cambridgeshire District Council,15/01/2016,S P Landscapes & Tree Contractors Ltd,634644,"1,050.00",,Tree Preservation/Landscaping,Premises,2814,Tree Management,Redacted Personal Data ,
East Cambridgeshire District Council,25/01/2016,Eastern Tree Surgery,634714,765,,Tree Preservation/Landscaping,Premises,2814,Tree Management,St Marys Churchyard Cheveley,
East Cambridgeshire District Council,22/12/2015,Skanska Construction UK Ltd,634633,"1,187.05",,Country Park,Premises,2820,Grounds Contract Work,Tarmac Works - Springhead Lane Ely,
East Cambridgeshire District Council,21/01/2016,Environment Agency ,5104492,90,,Parking Of Vehicles,Premises,2841,Licences,Waste Renewal,Y
East Cambridgeshire District Council,19/01/2016,G & J Peck Ltd,634661,528.11,,Parks And Open Spaces,Transport,3010,Vehicle Repairs,Husqvarna,
East Cambridgeshire District Council,25/01/2016,Commercial Services Trading Ltd,1133180,"3,754.82",280.32,Leased Cars,Transport,3051,Purchase Vehicles,EX65NPJ 11/12/15-10/12/16,
East Cambridgeshire District Council,06/01/2016,G & J Peck Ltd,634572,708.33,,Sanctuary Grasscutting,Supplies & Services,4010,Equipment - Purchases,,
East Cambridgeshire District Council,06/01/2016,G & J Peck Ltd,634579,908,,Open Spaces,Supplies & Services,4010,Equipment - Purchases,Honda Lawn Mower,
East Cambridgeshire District Council,12/01/2016,G & J Peck Ltd,634607,908,,Open Spaces,Supplies & Services,4010,Equipment - Purchases,Vyea Versamow,
East Cambridgeshire District Council,13/01/2016,G & J Peck Ltd,634625,"15,750.00",,Parks And Open Spaces,Supplies & Services,4010,Equipment - Purchases,Diesel Tractor,
East Cambridgeshire District Council,13/01/2016,G & J Peck Ltd,634626,"-2,000.00",,Parks And Open Spaces,Supplies & Services,4010,Equipment - Purchases,AE08NKC,
East Cambridgeshire District Council,21/01/2016,Safelincs,5104492,109.72,,Homelessness Prevention,Supplies & Services,4010,Equipment - Purchases,Smoke Alarm,Y
East Cambridgeshire District Council,21/01/2016,Safety Media,5104492,205.5,,Health & Safety (Work),Supplies & Services,4010,Equipment - Purchases,Manual Handling,Y
East Cambridgeshire District Council,21/01/2016,Parking Shop Direct ,5104492,120,,Licencing - Env Services,Supplies & Services,4010,Equipment - Purchases,Taxi Card Holders,Y
East Cambridgeshire District Council,21/01/2016,Just Projectors ,5104492,230.58,,Oliver Cromwell House,Supplies & Services,4010,Equipment - Purchases,Projector,Y
East Cambridgeshire District Council,21/01/2016,Coopers ,5104492,35.82,,The Grange,Supplies & Services,4010,Equipment - Purchases,Dehumidifier,Y
East Cambridgeshire District Council,31/12/2015,G & J Peck Ltd,634540,"2,384.58",,Parks And Open Spaces,Supplies & Services,4011,Equipment - Repairs,Bomford Harrier,
East Cambridgeshire District Council,22/01/2016,PHS Group Plc,1133176,"1,295.00",,The Grange,Supplies & Services,4013,Equipment - Hire,The Grange,
East Cambridgeshire District Council,28/01/2016,Konica Minolta Business Solutions East Ltd,1133267,"2,372.95",,Printing/Copying,Supplies & Services,4013,Equipment - Hire,1/11/15-31/1/16,
East Cambridgeshire District Council,11/01/2016,Fingerprint Digital Ltd,1133095,627.95,,Printing/Copying,Supplies & Services,4014,Equipment - Maint. Agreements,Service Ideal 5221 Guillotine & Duplo DP-225 Digital Duprinter,
East Cambridgeshire District Council,14/01/2016,Neopost Ltd,1133125,"1,670.29",,Registration of Electors,Supplies & Services,4014,Equipment - Maint. Agreements,DS-85 Inserter Service Agreement 27/1/16-23/1/17,
East Cambridgeshire District Council,21/01/2016,Shelving Direct,5104492,120,,The Grange,Supplies & Services,4020,Furniture - Purchase, Planning Office,Y
East Cambridgeshire District Council,09/01/2016,Park Retail Ltd t/as Love2Reward,634630,980,,Recycling Reward Scheme,Supplies & Services,4030,Materials - Purchase,Love 2 Shop Vouchers,
East Cambridgeshire District Council,23/12/2015,G & J Peck Ltd,634542,633.21,,Sanctuary Grasscutting,Supplies & Services,4210,Protective Clothing,"Trousers, Helmets & Gloves",
East Cambridgeshire District Council,11/01/2016,Take One Media Ltd,634595,"2,055.00",,Marketing & Grants,Supplies & Services,4310,Printing & Stationery,Distribution & Display of Ely Visitor Guide 2016,
East Cambridgeshire District Council,18/01/2016,Sabell & Co (Birmingham) Ltd,634654,"1,750.00",,Building Regulations Admin,Supplies & Services,4310,Printing & Stationery,Various folders,
East Cambridgeshire District Council,18/01/2016,Sabell & Co (Birmingham) Ltd,634654,"1,862.00",,Planning,Supplies & Services,4310,Printing & Stationery,Various folders,
East Cambridgeshire District Council,21/01/2016,Corporate Mailing Solutions,634686,"2,804.09",,Local Elections,Supplies & Services,4310,Printing & Stationery,Bottisham By-Election,
East Cambridgeshire District Council,21/01/2016,Colourbite ,5104492,49.37,,Printing/Copying,Supplies & Services,4310,Printing & Stationery,Photo Paper,Y
East Cambridgeshire District Council,08/01/2016,Thomson Reuters t/as Sweet & Maxwell Ltd,1133098,"1,530.00",,General Legal Advice,Supplies & Services,4320,Publications & books,Ency Planning Law & Practice,
East Cambridgeshire District Council,08/01/2016,Thomson Reuters t/as Sweet & Maxwell Ltd,1133099,559,,General Legal Advice,Supplies & Services,4320,Publications & books,Local Authority Licensing,
East Cambridgeshire District Council,08/01/2016,Thomson Reuters t/as Sweet & Maxwell Ltd,1133100,"2,041.00",,General Legal Advice,Supplies & Services,4320,Publications & books,Ency Environmental Health & Encyclopedia Local Government Law,
East Cambridgeshire District Council,02/01/2016,Foundation East Ltd,634578,"1,250.00",,Community Land Trusts,Supplies & Services,4401,Agency Workers,CLT Consultancy & Secondment - December 2015,
East Cambridgeshire District Council,08/01/2016,Sonovate Ltd,634593,"1,357.13",,Env Health Food,Supplies & Services,4401,Agency Workers,Redacted Personal Data  - Period Ending 27/12/15 & 3/1/16,
East Cambridgeshire District Council,13/01/2016,Sonovate Ltd,634634,863.63,,Env Health Food,Supplies & Services,4401,Agency Workers,Redacted Personal Data  - Period Ending 10/1/16,
East Cambridgeshire District Council,18/01/2016,Matchtech Group Ltd,634652,"1,462.50",,Planning,Supplies & Services,4401,Agency Workers,Redacted Personal Data  W/C 4/1/16,
East Cambridgeshire District Council,20/01/2016,Sonovate Ltd,634679,781.38,,Env Health Food,Supplies & Services,4401,Agency Workers,Redacted Personal Data  - Period Ending 17/1/16,
East Cambridgeshire District Council,22/01/2016,LabourTech Recruitment Ltd,634688,535.29,,The Grange,Supplies & Services,4401,Agency Workers,Redacted Personal Data  W/E 17/1/16,
East Cambridgeshire District Council,22/01/2016,Matchtech Group Ltd,634705,"1,462.50",,Planning,Supplies & Services,4401,Agency Workers,Redacted Personal Data - Week Ending 11/1/16,
East Cambridgeshire District Council,29/01/2016,Sonovate Ltd,634751,888.3,,Env Health Food,Supplies & Services,4401,Agency Workers,Redacted Personal Data  - Week Ending 24/1/16,
East Cambridgeshire District Council,14/01/2016,G4S Cash Solutions (UK) Ltd,1133124,822.99,,Angel Drove Commuters Car Park,Supplies & Services,4412,Courier Service,Contract 3342504 1/2/16-29/2/16,
East Cambridgeshire District Council,25/01/2016,Redacted Personal Data,634712,950,,Homelessness Prevention,Supplies & Services,4421,Sanctuary Homelessness/Rent Deposit,Redacted Personal Data ,
East Cambridgeshire District Council,18/01/2016,Sanctuary Group,1133137,"1,936.64",,Homelessness,Supplies & Services,4423,Hostel Charges/Voids,Void charges Burwell Hostel,
East Cambridgeshire District Council,18/01/2016,Sanctuary Group,1133138,"3,708.80",,Homelessness,Supplies & Services,4423,Hostel Charges/Voids,Void charges Lynn Rd Ely,
East Cambridgeshire District Council,18/01/2016,Sanctuary Group,1133139,"4,330.19",,Homelessness,Supplies & Services,4423,Hostel Charges/Voids,Void charges,
East Cambridgeshire District Council,31/12/2015,Ely Funeral Service,634547,"1,420.00",,Env Health/Pollution/Courses,Supplies & Services,4429,Undertakers Fees,Redacted Personal Data ,
East Cambridgeshire District Council,22/12/2015,Grant Thornton UK LLP,634522,"19,725.00",,LATC,Supplies & Services,4430,Consultants Fees,Advice in relation to the set up of a local authority trading company,
East Cambridgeshire District Council,31/12/2015,Mace Limited,634574,"75,649.00",,Leisure Centre,Supplies & Services,4430,Consultants Fees,East Cambs Leisure Centre - Dec 15,
East Cambridgeshire District Council,05/01/2016,Strutt & Parker LLP,634576,"2,638.28",,North Ely,Supplies & Services,4430,Consultants Fees,Planning Consultancy - North Ely,
East Cambridgeshire District Council,02/01/2016,Foundation East Ltd,634578,833.33,,Community Land Trusts,Supplies & Services,4430,Consultants Fees,CLT Consultancy & Secondment - December 2015,
East Cambridgeshire District Council,15/01/2016,Linda S Russell Limited,634647,645,,Planning,Supplies & Services,4430,Consultants Fees,Planning appeal & EN appeal Redacted Personal Data ,
East Cambridgeshire District Council,20/01/2016,Holmes & Hills Solicitors,634715,550,,Planning,Supplies & Services,4430,Consultants Fees,Redacted Personal Data ,
East Cambridgeshire District Council,30/11/2015,Cambridgeshire County Council,1132840,"2,875.00",,Planning,Supplies & Services,4430,Consultants Fees,Archaeological Services 2015/16,
East Cambridgeshire District Council,08/01/2016,AJS Freelance Architectural Services,1133087,539.1,,Home Improvement Agency Services,Supplies & Services,4430,Consultants Fees,Redacted Personal Data ,
East Cambridgeshire District Council,11/01/2016,Northamptonshire County Council,1133106,"3,105.00",,General Legal Advice,Supplies & Services,4430,Consultants Fees,1st Quarterly charge LGSS Procurement 1/10-1/12/15,
East Cambridgeshire District Council,21/01/2016,123-Reg Ltd,5104492,63.95,,LATC,Supplies & Services,4430,Consultants Fees,Palace Green,Y
East Cambridgeshire District Council,21/01/2016,Money Claim Online,5104492,180,,Finance - Debtors (AR),Supplies & Services,4444,Court Costs,Claim Online,Y
East Cambridgeshire District Council,20/01/2016,Frontier Software Plc,634672,600,,Information Technology,Supplies & Services,4452,IT ONLY - Upgrade consultants,V8 Consultancy 21/12/15,
East Cambridgeshire District Council,27/01/2016,Idox Software Limited,634732,"2,250.00",,Information Technology,Supplies & Services,4452,IT ONLY - Upgrade consultants,TLC Upgrade and Con29 - 50% of Order,
East Cambridgeshire District Council,15/01/2016,Neopost Ltd,1133135,"2,000.00",,DMS,Supplies & Services,4510,Postage,Postage Recredit - 21/12/15 & 6/1/16,
East Cambridgeshire District Council,19/01/2016,Virgin Media Payments Ltd - 743058701,1133147,"2,037.41",,The Grange,Supplies & Services,4520,Telephone,Account code 743058701,
East Cambridgeshire District Council,07/01/2016,Virgin Media Payments - 923467,1133102,903.88,,Information Technology,Supplies & Services,4522,Contributions (IT Only CCN),Account Number 923467,
East Cambridgeshire District Council,18/01/2016,Sieve Creative,634651,575,,E Space North,Supplies & Services,4540,Promotion Costs,Website design E-Space,
East Cambridgeshire District Council,21/01/2016,Amazon ,5104492,88.92,,Recycling Reward Scheme,Supplies & Services,4540,Promotion Costs,Frames,Y
East Cambridgeshire District Council,21/01/2016,Amazon ,5104492,29.44,,Recycling Reward Scheme,Supplies & Services,4540,Promotion Costs,Memory Sticks,Y
East Cambridgeshire District Council,31/12/2015,NU Network Products Ltd,634536,"3,495.00",,Information Technology,Supplies & Services,4550,IT Licences,Applications Manager Prof Annual Subs Ending 30/12/16,
East Cambridgeshire District Council,22/12/2015,Northgate Public Services (UK) Ltd,1132971,"7,267.45",,Information Technology,Supplies & Services,4550,IT Licences,Software Support 22/1/16-21/1/17,
East Cambridgeshire District Council,05/01/2016,Vodafone Ltd,1133049,"1,132.62",,Information Technology,Supplies & Services,4550,IT Licences,GSI Convergence Framework 1/10/15-31/12/15,
East Cambridgeshire District Council,08/01/2016,Ip-Xchange Ltd,634611,"3,571.88",,E Space South,Supplies & Services,4551,Hardware Purchases/Maint,E-Space South IPT Serv´s rental of FTTC Internet 1/1/16-31/1/16,
East Cambridgeshire District Council,08/01/2016,Ip-Xchange Ltd,634612,"3,459.54",,E Space North,Supplies & Services,4551,Hardware Purchases/Maint,E-Space North managed IPT Serv´s 1/1/16-31/1/16,
East Cambridgeshire District Council,21/01/2016,Dell,5104492,26.95,,Information Technology,Supplies & Services,4551,Hardware Purchases/Maint,Cable,Y
East Cambridgeshire District Council,22/01/2016,Northgate Public Services (UK) Ltd,634735,666,,Information Technology,Supplies & Services,4553,Software Purchases/Maint,Licence & Support 1/3/16-28/2/17,
East Cambridgeshire District Council,21/01/2016,Lets Recycle ,5104492,260,,Refuse Collection,Supplies & Services,4620,Staff Conference Expenses,Conference Brooks/White,Y
East Cambridgeshire District Council,31/12/2015,British Red Cross Society,634535,"1,000.00",,Emergency Planning,Supplies & Services,4713,Grants-Contributions,Emergency Response 15/16,
East Cambridgeshire District Council,15/01/2016,Soham Action 4 Youth,634678,"1,000.00",,Community Safety,Supplies & Services,4713,Grants-Contributions,Contribution towards 2 trips for Young People in 2015,
East Cambridgeshire District Council,27/01/2016,Soham Town Council,634725,"1,232.00",,Town Centres,Supplies & Services,4731,Grants-Community,Grant 15/16 Hanging Baskets,
East Cambridgeshire District Council,14/01/2016,Socitm Ltd,1133126,"1,000.00",,Information Technology,Supplies & Services,4780,Subscriptions-General,"Insight Service 2016 & Member, Public Sector 1/1/16-31/12/16",
East Cambridgeshire District Council,21/01/2016,Survey Monkey,5104492,249.17,,Local Plan Preparation,Supplies & Services,4780,Subscriptions-General,Subscription,Y
East Cambridgeshire District Council,21/01/2016,Law Society,5104492,352,,General Legal Advice,Supplies & Services,4786,Subscriptions-Law Society Practice Cert,Redacted Personal Data - Practicing Cert,Y
East Cambridgeshire District Council,08/01/2016,King Street Housing Society Ltd,634588,"1,049.36",,Homelessness Prevention,Supplies & Services,4910,Other Payments,Redacted Personal Data ,
East Cambridgeshire District Council,07/01/2016,Unison (10455),1133079,626.9,,Payroll,Supplies & Services,4910,Other Payments,Membership December 2015,
East Cambridgeshire District Council,21/01/2016,Information Commissioner,5104492,35,,Member & Committee Support,Supplies & Services,4913,Data Protect Act-Fee,DPA Electoral Officers,Y
East Cambridgeshire District Council,21/01/2016,Information Commissioner,5104492,35,,Member & Committee Support,Supplies & Services,4913,Data Protect Act-Fee,DPA ECDC,Y
East Cambridgeshire District Council,07/01/2016,Stretham Parish Council (PRECEPT ONLY),1133080,"16,563.43",,CIL - Parish,Supplies & Services,4934,Transfer/Funding,CIL meaningful proportion 15%,
East Cambridgeshire District Council,13/01/2016,Paul Barrow Builders  Ltd,1133112,"2,655.91",,Home Improvement Agency Services,Supplies & Services,4938,Client Contribution,C & R - Bal of Inv: 910 - Redacted Personal Data ,
East Cambridgeshire District Council,13/01/2016,Pollocks Lifts,1133116,"4,180.18",,Home Improvement Agency Services,Supplies & Services,4938,Client Contribution,C & R - Bal of Inv 52935 Redacted Personal Data ,
East Cambridgeshire District Council,20/01/2016,Richard Hough Building Ltd,1133154,"2,255.97",,Home Improvement Agency Services,Supplies & Services,4938,Client Contribution,C & R - Redacted Personal Data  - Inv BL5712,
East Cambridgeshire District Council,21/01/2016,Richard Hough Building Ltd,1133160,"1,768.62",,Home Improvement Agency Services,Supplies & Services,4938,Client Contribution,C & R - Redacted Personal Data ,
East Cambridgeshire District Council,06/01/2016,SLM Ltd,1133058,"9,320.50",,Paradise Pool,Third Party Payments,5010,Contracted Services,Management fee December 2015,
East Cambridgeshire District Council,07/01/2016,Veolia ES (UK) Ltd,1133077,"1,463.64",,Bulk Waste,Third Party Payments,5010,Contracted Services,Monthly Contract 1/12/15-31/12/15,
East Cambridgeshire District Council,07/01/2016,Veolia ES (UK) Ltd,1133077,"30,514.95",,Recycling,Third Party Payments,5010,Contracted Services,Monthly Contract 1/12/15-31/12/15,
East Cambridgeshire District Council,07/01/2016,Veolia ES (UK) Ltd,1133077,"71,075.26",,Recycling Organic Waste,Third Party Payments,5010,Contracted Services,Monthly Contract 1/12/15-31/12/15,
East Cambridgeshire District Council,07/01/2016,Veolia ES (UK) Ltd,1133077,"71,963.76",,Refuse Collection,Third Party Payments,5010,Contracted Services,Monthly Contract 1/12/15-31/12/15,
East Cambridgeshire District Council,07/01/2016,Veolia ES (UK) Ltd,1133077,"44,813.44",,Street Cleansing,Third Party Payments,5010,Contracted Services,Monthly Contract 1/12/15-31/12/15,
East Cambridgeshire District Council,08/01/2016,AmeyCespa (East) Limited,1133090,"2,234.94",,The Grange,Third Party Payments,5010,Contracted Services,,
East Cambridgeshire District Council,11/01/2016,SLM Ltd,1133105,"8,780.00",,Paradise Pool,Third Party Payments,5010,Contracted Services,Management Fee January 2016,
East Cambridgeshire District Council,04/01/2016,Breckland Council,1133048,"37,120.00",,Council Tax Collection Costs,Third Party Payments,5020,ARP Services,Monthly provision of services 15/16,
East Cambridgeshire District Council,04/01/2016,Breckland Council,1133048,"46,399.00",,Housing Benefits,Third Party Payments,5020,ARP Services,Monthly provision of services 15/16,
East Cambridgeshire District Council,04/01/2016,Breckland Council,1133048,"9,280.00",,NNDR Collection costs,Third Party Payments,5020,ARP Services,Monthly provision of services 15/16,
East Cambridgeshire District Council,29/01/2016,Breckland Council,1133276,"1,961.71",,Housing Benefits,Third Party Payments,5023,Grants Paid Over (ARP),DWP LADS Grant & SFIS Grant,
East Cambridgeshire District Council,07/01/2016,Egbert H Taylor & Co Ltd,634577,"6,679.10",,Recycling & Organics Collection Service,Capital Costs,C108,Supplies & Services,1100 Litre & 660 Litre Containers,
East Cambridgeshire District Council,14/01/2016,Reach Parish Council,634639,"2,400.00",,Community Facilities Grant,Capital Costs,C401,Capital Grants,Facilities Improvement Grant Ref 001 - Power onto the green project,
East Cambridgeshire District Council,13/01/2016,Paul Barrow Builders  Ltd,1133113,"1,150.00",,Mandatory Disabled Fac.Grant,Capital Costs,C402,Home Imp.Grant 50% advance,Redacted Personal Data ,
East Cambridgeshire District Council,20/01/2016,Ashco Building & Maintenance Services Ltd,1133156,"7,290.92",,Mandatory Disabled Fac.Grant,Capital Costs,C402,Home Imp.Grant 50% advance,Redacted Personal Data ,
East Cambridgeshire District Council,20/01/2016,Pollocks Lifts,1133157,"10,483.00",,Mandatory Disabled Fac.Grant,Capital Costs,C402,Home Imp.Grant 50% advance,Redacted Personal Data ,
East Cambridgeshire District Council,13/01/2016,Paul Barrow Builders  Ltd,1133111,"3,983.87",,Mandatory Disabled Fac.Grant,Capital Costs,C404,Home Imp.Grant. Final payment,Redacted Personal Data ,
East Cambridgeshire District Council,13/01/2016,Paul Barrow Builders  Ltd,1133114,"7,284.84",,Mandatory Disabled Fac.Grant,Capital Costs,C404,Home Imp.Grant. Final payment,Redacted Personal Data ,
East Cambridgeshire District Council,13/01/2016,Pollocks Lifts,1133115,"5,120.26",,Mandatory Disabled Fac.Grant,Capital Costs,C404,Home Imp.Grant. Final payment,Redacted Personal Data ,
East Cambridgeshire District Council,20/01/2016,Richard Hough Building Ltd,1133155,"3,603.95",,Mandatory Disabled Fac.Grant,Capital Costs,C404,Home Imp.Grant. Final payment,Redacted Personal Data ,
East Cambridgeshire District Council,21/01/2016,Richard Hough Building Ltd,1133161,"2,652.94",,Mandatory Disabled Fac.Grant,Capital Costs,C404,Home Imp.Grant. Final payment,Redacted Personal Data ,
East Cambridgeshire District Council,28/01/2016,Ashco Building & Maintenance Services Ltd,1133270,"17,586.10",,Mandatory Disabled Fac.Grant,Capital Costs,C404,Home Imp.Grant. Final payment,Redacted Personal Data ,
East Cambridgeshire District Council,28/01/2016,Lynch Healthcare,1133272,"2,171.31",,Mandatory Disabled Fac.Grant,Capital Costs,C404,Home Imp.Grant. Final payment,Redacted Personal Data ,
East Cambridgeshire District Council,21/01/2016,Gas Heating Services Ltd,1133162,619.75,,Home Repair Assistance,Capital Costs,C405,Home Repair Grants,Redacted Personal Data ,
East Cambridgeshire District Council,25/01/2016,Shelutions Ltd,634708,"12,180.00",,Section 106 Agreements,Section 106,P360,Section 106 Rev Payments,Cantilever Bus Shelters,
,,,,"460,223.07",,,,,,,
